fUST/lending_fUST_20251029
["ID","MTS","AMOUNT","RATE_DAILY","PERIOD"]
[392602380,1761730156299,-300.0,0.00018873,2]
[392602381,1761730156320,-300.0,0.00018873,2]
[392602382,1761730156342,-300.0,0.00018873,2]
[392602383,1761730156362,-300.0,0.00018873,2]
[392602384,1761730156384,-300.0,0.00018873,2]
[392602385,1761730156404,-300.0,0.00018873,2]
[392602386,1761730156426,-300.0,0.00018873,2]
[392602387,1761730156447,-300.0,0.00018873,2]
[392602388,1761730157448,249.75540979,0.00018403,2]
[392602423,1761730231707,-541.6364272,0.00019656,2]
[392602424,1761730231765,-3541.69290555,0.00019656,2]
[392602425,1761730231774,-627.570961,0.00019854,2]
[392602426,1761730231784,-1000.0,0.00020107,2]
[392602427,1761730231793,-1200.0,0.00020178,2]
[392602428,1761730231803,-177.0,0.00020411,2]
[392602429,1761730231811,-966.96049431,0.00020599,2]
[392602430,1761730231821,-850.95,0.000207,2]
[392602432,1761730231830,-1200.0,0.00020797,2]
[392602433,1761730231839,-300.0,0.00020798,2]
[392602434,1761730231848,-300.0,0.00020798,2]
[392602435,1761730231858,-300.0,0.00020798,2]
[392602436,1761730231867,-300.0,0.00020798,2]
[392602437,1761730231876,-300.0,0.00020798,2]
[392602438,1761730231885,-966.96049431,0.00020879,2]
[392602439,1761730231895,-160.0,0.00020886,2]
[392602440,1761730231904,-2902.96499496,0.00021,6]
[392602441,1761730231913,-500.0,0.00021051,2]
[392602442,1761730231923,-300.0,0.00021212,20]
[392602443,1761730231932,-300.0,0.00021212,20]
[392602444,1761730231942,-300.0,0.00021212,20]
[392602445,1761730231951,-300.0,0.00021212,20]
[392602446,1761730231961,-300.0,0.00021212,20]
[392602447,1761730231971,-300.0,0.00021212,20]
[392602448,1761730231980,-300.0,0.00021212,20]
[392602449,1761730231990,-300.0,0.00021212,20]
[392602450,1761730232000,-300.0,0.00021212,20]
[392602451,1761730232010,-300.0,0.00021212,20]
[392602452,1761730232020,-300.0,0.00021212,20]
[392602453,1761730232029,-300.0,0.00021212,20]
[392602454,1761730232039,-966.96049431,0.00021213,2]
[392602455,1761730232048,-403.72361849,0.00021238,2]
[392602456,1761730232057,-600.0,0.00021291,20]
[392602457,1761730232067,-966.96049432,0.00021376,2]
[392602458,1761730232076,-500.0,0.00021513,2]
[392602459,1761730232085,-318.12139219,0.00021514,2]
[392602460,1761730232097,-978.17719129,0.00021569,2]
[392602461,1761730232106,-206.79050221,0.000216,2]
[392602462,1761730232116,-424.74,0.00021607,3]
[392602463,1761730232125,-1592.61,0.00021607,10]
[392602464,1761730232135,-2188.81,0.00021607,10]
[392602465,1761730232145,-1824.01,0.00021607,10]
[392602466,1761730232155,-151.0,0.00021614,2]
[392602467,1761730232164,-151.0,0.00021614,2]
[392602468,1761730232173,-151.0,0.00021614,2]
[392602469,1761730232183,-6000.0,0.00021614,2]
[392602470,1761730232193,-308.42601063,0.00021616,2]
[392602471,1761730232202,-370000.0,0.00021617,2]
[392602472,1761730232212,-978.17719129,0.00021631,2]
[392602473,1761730232221,-151.0,0.00021669,2]
[392602474,1761730232231,-259.16880805,0.00021669,2]
[392602475,1761730232240,-500.0,0.00021673,2]
[392602476,1761730232249,-500.0,0.00021673,2]
[392602477,1761730232259,-500.0,0.00021673,2]
[392602478,1761730232268,-500.0,0.00021673,2]
[392602479,1761730232278,-481.78572246,0.00021673,2]
[392602480,1761730232287,-500.0,0.00021673,2]
[392602481,1761730232301,-500.0,0.00021673,2]
[392602482,1761730232311,-500.0,0.00021673,2]
[392602483,1761730232320,-500.0,0.00021673,2]
[392602484,1761730232330,-501.22472656,0.00021673,2]
[392602485,1761730232339,-1701.89,0.00021675,2]
[392602486,1761730232348,-978.17719129,0.00021693,2]
[392602487,1761730232357,-500.0,0.00021699,2]
[392602488,1761730232367,-1240.8413586,0.00021715,2]
[392602489,1761730232377,-960.9935429,0.00021715,2]
[392602490,1761730232387,-957.1503856,0.00021715,2]
[392602491,1761730232396,-500.0,0.00021716,2]
[392602492,1761730232405,-2047.94,0.00021716,2]
[392602493,1761730232415,-1000.0,0.00021716,2]
[392602494,1761730232425,-1000.0,0.00021716,2]
[392602495,1761730232434,-1000.0,0.00021716,2]
[392602496,1761730232444,-1052.06200516,0.00021716,2]
[392602497,1761730232453,-500.0,0.00021717,2]
[392602498,1761730232463,-199.25553735,0.00021724,2]
[392602499,1761730232473,-978.17719129,0.00021755,2]
[392602500,1761730232483,-2167.0,0.00021784,2]
[392602501,1761730232492,-500.0,0.00021787,2]
[392602502,1761730232502,-29212.80019081,0.00021817,3]
[392602503,1761730232511,-403.72361849,0.00021817,3]
[392602504,1761730232521,-194.995576,0.00021817,3]
[392602505,1761730232531,-978.17719129,0.00021817,2]
[392602506,1761730232541,-500.0,0.00021917,2]
[392602507,1761730232550,-500.0,0.00021917,2]
[392602508,1761730232560,-500.0,0.00021917,2]
[392602509,1761730232570,-500.0,0.00021917,2]
[392602510,1761730232579,-500.0,0.00021917,2]
[392602511,1761730232589,-519.11,0.00021917,2]
[392602512,1761730232599,-500.0,0.00021917,2]
[392602513,1761730232607,-500.0,0.00021917,2]
[392602514,1761730232617,-500.0,0.00021917,2]
[392602515,1761730232626,-500.0,0.00021917,2]
[392602516,1761730232635,-500.0,0.00021917,2]
[392602517,1761730232644,-500.0,0.00021917,2]
[392602518,1761730232653,-500.0,0.00021917,2]
[392602519,1761730232662,-500.0,0.00021917,2]
[392602520,1761730232672,-500.0,0.00021917,2]
[392602521,1761730232681,-500.0,0.00021917,2]
[392602522,1761730232690,-500.0,0.00021917,2]
[392602523,1761730232700,-500.0,0.00021917,2]
[392602524,1761730232710,-500.0,0.00021917,2]
[392602525,1761730232719,-500.0,0.00021917,2]
[392602526,1761730232729,-500.0,0.00021917,2]
[392602527,1761730232738,-500.0,0.00021917,2]
[392602528,1761730232747,-500.0,0.00021917,2]
[392602529,1761730232756,-500.0,0.00021917,2]
[392602530,1761730232766,-500.0,0.00021917,2]
[392602531,1761730232775,-500.0,0.00021917,2]
[392602532,1761730232785,-500.0,0.00021917,2]
[392602533,1761730232794,-500.0,0.00021917,2]
[392602534,1761730232803,-822.92,0.00021917,2]
[392602535,1761730232813,-500.0,0.00021917,2]
[392602536,1761730232822,-500.0,0.00021917,2]
[392602537,1761730232831,-500.0,0.00021917,2]
[392602538,1761730232840,-500.0,0.00021917,2]
[392602539,1761730232850,-500.0,0.00021917,2]
[392602540,1761730232860,-500.0,0.00021917,2]
[392602541,1761730232869,-840.28,0.00021917,2]
[392602542,1761730232878,-500.0,0.00021917,2]
[392602543,1761730232888,-500.0,0.00021917,2]
[392602544,1761730232898,-500.0,0.00021917,2]
[392602545,1761730232907,-500.0,0.00021917,2]
[392602546,1761730232916,-500.0,0.00021917,2]
[392602547,1761730232925,-500.0,0.00021917,2]
[392602548,1761730232934,-500.0,0.00021917,2]
[392602549,1761730232944,-500.0,0.00021917,2]
[392602550,1761730232954,-500.0,0.00021917,2]
[392602551,1761730232964,-500.0,0.00021917,2]
[392602552,1761730232974,-500.0,0.00021917,2]
[392602553,1761730232984,-500.0,0.00021917,2]
[392602554,1761730232994,-500.0,0.00021917,2]
[392602555,1761730233003,-500.0,0.00021917,2]
[392602556,1761730233012,-500.0,0.00021917,2]
[392602557,1761730233022,-500.0,0.00021917,2]
[392602558,1761730233031,-500.0,0.00021917,2]
[392602559,1761730233041,-501.38579346,0.00021917,2]
[392602560,1761730233051,-500.0,0.00021917,2]
[392602561,1761730233061,-551.52,0.00021917,2]
[392602562,1761730233070,-500.0,0.00021917,2]
[392602563,1761730233080,-485.85662887,0.00021917,2]
[392602564,1761730233089,-500.0,0.00021917,2]
[392602565,1761730233098,-500.0,0.00021917,2]
[392602566,1761730233107,-500.0,0.00021917,2]
[392602567,1761730233116,-500.0,0.00021917,2]
[392602568,1761730233126,-500.0,0.00021917,2]
[392602569,1761730233136,-500.0,0.00021917,2]
[392602570,1761730233145,-468.68930124,0.00021917,2]
[392602571,1761730233155,-500.0,0.00021917,2]
[392602572,1761730233164,-500.0,0.00021917,2]
[392602573,1761730233173,-500.0,0.00021917,2]
[392602574,1761730233182,-500.0,0.00021917,2]
[392602575,1761730233191,-500.0,0.00021917,2]
[392602576,1761730233200,-500.0,0.00021917,2]
[392602577,1761730233209,-500.0,0.00021917,2]
[392602578,1761730233218,-500.0,0.00021917,2]
[392602579,1761730233227,-500.0,0.00021917,2]
[392602580,1761730233236,-500.0,0.00021917,2]
[392602581,1761730233246,-500.0,0.00021917,2]
[392602582,1761730233255,-500.0,0.00021917,2]
[392602583,1761730233264,-500.0,0.00021917,2]
[392602584,1761730233273,-500.0,0.00021917,2]
[392602585,1761730233283,-500.0,0.00021917,2]
[392602586,1761730233296,-500.0,0.00021917,2]
[392602587,1761730233305,-500.0,0.00021917,2]
[392602588,1761730233314,-500.0,0.00021917,2]
[392602589,1761730233323,-500.0,0.00021917,2]
[392602590,1761730233333,-500.0,0.00021917,2]
[392602591,1761730233342,-500.0,0.00021917,2]
[392602592,1761730233353,-500.0,0.00021917,2]
[392602593,1761730233362,-500.0,0.00021917,2]
[392602594,1761730233371,-500.0,0.00021917,2]
[392602595,1761730233380,-2468.86,0.00021917,2]
[392602596,1761730233389,-500.0,0.00021917,2]
[392602597,1761730233399,-500.0,0.00021917,2]
[392602598,1761730233408,-500.0,0.00021917,2]
[392602599,1761730233417,-500.0,0.00021917,2]
[392602600,1761730233427,-503.72,0.00021917,2]
[392602601,1761730233437,-500.0,0.00021917,2]
[392602602,1761730233446,-500.0,0.00021917,2]
[392602603,1761730233456,-500.0,0.00021917,2]
[392602604,1761730233465,-500.0,0.00021917,2]
[392602605,1761730233474,-500.0,0.00021917,2]
[392602606,1761730233483,-500.0,0.00021917,2]
[392602607,1761730233492,-500.0,0.00021917,2]
[392602608,1761730233501,-500.0,0.00021917,2]
[392602609,1761730233510,-500.0,0.00021917,2]
[392602610,1761730233519,-500.0,0.00021917,2]
[392602611,1761730233529,-500.0,0.00021917,2]
[392602612,1761730233539,-500.0,0.00021917,2]
[392602613,1761730233548,-500.0,0.00021917,2]
[392602614,1761730233558,-500.0,0.00021917,2]
[392602615,1761730233567,-500.0,0.00021917,2]
[392602616,1761730233576,-921.23,0.00021917,2]
[392602617,1761730233585,-506.21,0.00021917,2]
[392602618,1761730233595,-500.0,0.00021917,2]
[392602619,1761730233603,-500.0,0.00021917,2]
[392602620,1761730233613,-500.0,0.00021917,2]
[392602621,1761730233622,-500.0,0.00021917,2]
[392602622,1761730233630,-151.0,0.00021917,7]
[392602623,1761730233639,-500.0,0.00021917,2]
[392602624,1761730233648,-537.97,0.00021917,2]
[392602625,1761730233658,-500.0,0.00021917,2]
[392602626,1761730233667,-194.995576,0.00021917,2]
[392602627,1761730233676,-500.0,0.00021917,2]
[392602628,1761730233685,-500.0,0.00021917,2]
[392602629,1761730233694,-500.0,0.00021917,2]
[392602630,1761730233703,-500.0,0.00021917,2]
[392602631,1761730233712,-500.0,0.00021917,2]
[392602632,1761730233722,-500.0,0.00021917,2]
[392602633,1761730233731,-1172.67,0.00021917,2]
[392602634,1761730233740,-500.0,0.00021917,2]
[392602635,1761730233749,-151.0,0.00021917,7]
[392602636,1761730233759,-500.0,0.00021917,2]
[392602637,1761730233767,-151.0,0.00021917,7]
[392602638,1761730233776,-151.0,0.00021917,7]
[392602639,1761730233786,-279.542484,0.00021917,7]
[392602640,1761730233795,-507.47,0.00021917,2]
[392602641,1761730233804,-500.0,0.00021917,2]
[392602642,1761730233813,-500.0,0.00021917,2]
[392602643,1761730233822,-500.0,0.00021917,2]
[392602644,1761730233831,-628.65467457,0.00021917,2]
[392602645,1761730233840,-572.06,0.00021917,2]
[392602646,1761730233849,-500.0,0.00021917,2]
[392602647,1761730233858,-500.0,0.00021917,2]
[392602648,1761730233867,-604.68,0.00021917,2]
[392602649,1761730233876,-500.0,0.00021917,2]
[392602650,1761730233886,-248.35340127,0.00021917,2]
[392602651,1761730233895,-500.0,0.00021917,2]
[392602652,1761730234087,-500.0,0.00021917,2]
[392602653,1761730234097,-500.0,0.00021917,2]
[392602654,1761730234108,-500.0,0.00021917,2]
[392602655,1761730234118,-500.0,0.00021917,2]
[392602656,1761730234127,-500.0,0.00021917,2]
[392602657,1761730234137,-500.0,0.00021917,2]
[392602658,1761730234148,-500.0,0.00021917,2]
[392602659,1761730234157,-675.95,0.00021917,2]
[392602660,1761730234166,-500.0,0.00021917,2]
[392602661,1761730234175,-500.0,0.00021917,2]
[392602662,1761730234184,-500.0,0.00021917,2]
[392602663,1761730234193,-500.0,0.00021917,2]
[392602664,1761730234203,-549.65,0.00021917,2]
[392602665,1761730234212,-500.0,0.00021917,2]
[392602666,1761730234221,-500.0,0.00021917,2]
[392602667,1761730234229,-500.0,0.00021917,2]
[392602668,1761730234238,-500.0,0.00021917,2]
[392602669,1761730234247,-500.0,0.00021917,2]
[392602670,1761730234257,-500.0,0.00021917,2]
[392602671,1761730234267,-500.0,0.00021917,2]
[392602672,1761730234275,-500.0,0.00021917,2]
[392602673,1761730234285,-500.0,0.00021917,2]
[392602674,1761730234298,-564.93,0.00021917,2]
[392602675,1761730234307,-500.0,0.00021917,2]
[392602676,1761730234316,-500.0,0.00021917,2]
[392602677,1761730234325,-500.0,0.00021917,2]
[392602678,1761730234335,-508.8,0.00021917,2]
[392602679,1761730234344,-500.0,0.00021917,2]
[392602680,1761730234353,-500.0,0.00021917,2]
[392602681,1761730234362,-500.0,0.00021917,2]
[392602682,1761730234371,-723.49,0.00021917,2]
[392602683,1761730234380,-500.0,0.00021917,2]
[392602684,1761730234389,-500.0,0.00021917,2]
[392602685,1761730234398,-500.0,0.00021917,2]
[392602686,1761730234407,-500.0,0.00021917,2]
[392602687,1761730234416,-605.32,0.00021917,2]
[392602688,1761730234425,-500.0,0.00021917,2]
[392602689,1761730234434,-500.0,0.00021917,2]
[392602690,1761730234443,-500.0,0.00021917,2]
[392602691,1761730234452,-500.0,0.00021917,2]
[392602692,1761730234461,-500.0,0.00021917,2]
[392602693,1761730234471,-500.0,0.00021917,2]
[392602694,1761730234480,-500.0,0.00021917,2]
[392602695,1761730234489,-500.0,0.00021917,2]
[392602696,1761730234498,-500.0,0.00021917,2]
[392602697,1761730234507,-500.0,0.00021917,2]
[392602698,1761730234516,-500.0,0.00021917,2]
[392602699,1761730234525,-500.0,0.00021917,2]
[392602700,1761730234535,-500.0,0.00021917,2]
[392602701,1761730234544,-500.0,0.00021917,2]
[392602702,1761730234553,-500.0,0.00021917,2]
[392602703,1761730234562,-500.0,0.00021917,2]
[392602704,1761730234571,-500.0,0.00021917,2]
[392602705,1761730234580,-500.0,0.00021917,2]
[392602706,1761730234589,-596.31,0.00021917,2]
[392602707,1761730234598,-500.0,0.00021917,2]
[392602708,1761730234607,-500.0,0.00021917,2]
[392602709,1761730234616,-379.6882787,0.00021917,2]
[392602710,1761730234625,-295.16469487,0.00021917,2]
[392602711,1761730234634,-500.0,0.00021917,2]
[392602712,1761730234644,-500.0,0.00021917,2]
[392602713,1761730234653,-500.0,0.00021917,2]
[392602714,1761730234662,-781.76,0.00021917,2]
[392602715,1761730234671,-500.0,0.00021917,2]
[392602716,1761730234680,-500.0,0.00021917,2]
[392602717,1761730234694,-500.0,0.00021917,2]
[392602718,1761730234703,-500.0,0.00021917,2]
[392602719,1761730234713,-500.0,0.00021917,2]
[392602720,1761730234723,-500.0,0.00021917,2]
[392602721,1761730234732,-500.0,0.00021917,2]
[392602722,1761730234741,-500.0,0.00021917,2]
[392602723,1761730234750,-500.0,0.00021917,2]
[392602724,1761730234761,-500.0,0.00021917,2]
[392602725,1761730234770,-500.0,0.00021917,2]
[392602726,1761730234779,-540.65,0.00021917,2]
[392602727,1761730234789,-750.9,0.00021917,2]
[392602728,1761730234798,-500.0,0.00021917,2]
[392602729,1761730234807,-516.45,0.00021917,2]
[392602730,1761730234815,-500.0,0.00021917,2]
[392602731,1761730234824,-500.0,0.00021917,2]
[392602732,1761730234833,-500.0,0.00021917,2]
[392602733,1761730234842,-500.0,0.00021917,2]
[392602734,1761730234851,-500.0,0.00021917,2]
[392602735,1761730234860,-500.0,0.00021917,2]
[392602736,1761730234869,-500.0,0.00021917,2]
[392602737,1761730234879,-500.0,0.00021917,2]
[392602738,1761730234888,-500.0,0.00021917,2]
[392602739,1761730234897,-500.0,0.00021917,2]
[392602740,1761730234906,-500.0,0.00021917,2]
[392602741,1761730234915,-1664.87,0.00021917,2]
[392602742,1761730234924,-500.0,0.00021917,2]
[392602743,1761730234933,-500.0,0.00021917,2]
[392602744,1761730234943,-500.0,0.00021917,2]
[392602745,1761730234952,-500.0,0.00021917,2]
[392602746,1761730234962,-1210.2,0.00021917,2]
[392602747,1761730234972,-500.0,0.00021917,2]
[392602748,1761730234981,-12702.71,0.00021917,2]
[392602749,1761730234992,-610.26,0.00021917,2]
[392602750,1761730235001,-581.76,0.00021917,2]
[392602751,1761730235011,-500.0,0.00021917,2]
[392602752,1761730235021,-822.25,0.00021917,2]
[392602753,1761730235030,-2204.09,0.00021917,2]
[392602754,1761730235040,-1220.08,0.00021917,2]
[392602755,1761730235049,-500.0,0.00021917,2]
[392602756,1761730235059,-500.0,0.00021917,2]
[392602757,1761730235068,-500.0,0.00021917,2]
[392602758,1761730235077,-500.0,0.00021917,2]
[392602759,1761730235086,-500.0,0.00021917,2]
[392602760,1761730235096,-500.0,0.00021917,2]
[392602761,1761730235105,-500.0,0.00021917,2]
[392602762,1761730235114,-500.0,0.00021917,2]
[392602763,1761730235123,-151.0,0.00021917,7]
[392602764,1761730235134,-517.5216342,0.00021917,2]
[392602765,1761730235143,-563.34,0.00021917,2]
[392602766,1761730235153,-501.49,0.00021917,2]
[392602767,1761730235162,-151.0,0.00021917,7]
[392602768,1761730235171,-500.0,0.00021917,2]
[392602769,1761730235180,-500.0,0.00021917,2]
[392602770,1761730235191,-808.95,0.00021917,2]
[392602771,1761730235202,-500.0,0.00021917,2]
[392602772,1761730235212,-500.0,0.00021917,2]
[392602773,1761730235221,-500.0,0.00021917,2]
[392602774,1761730235230,-641.42,0.00021917,2]
[392602775,1761730235240,-685.52,0.00021917,2]
[392602776,1761730235250,-1223.68,0.00021917,2]
[392602777,1761730235259,-500.0,0.00021917,2]
[392602778,1761730235268,-500.0,0.00021917,2]
[392602779,1761730235277,-500.0,0.00021917,2]
[392602780,1761730235288,-500.0,0.00021917,2]
[392602781,1761730235300,-760.94,0.00021917,2]
[392602782,1761730235309,-934.94,0.00021917,2]
[392602783,1761730235319,-500.0,0.00021917,2]
[392602784,1761730235328,-586.41,0.00021917,2]
[392602785,1761730235337,-500.0,0.00021917,2]
[392602786,1761730235346,-1752.53,0.00021917,2]
[392602787,1761730235355,-500.0,0.00021917,2]
[392602788,1761730235364,-640.4,0.00021917,2]
[392602789,1761730235374,-500.0,0.00021917,2]
[392602790,1761730235383,-500.0,0.00021917,2]
[392602791,1761730235392,-713.3,0.00021917,2]
[392602792,1761730235402,-500.0,0.00021917,2]
[392602793,1761730235411,-500.0,0.00021917,2]
[392602794,1761730235420,-500.0,0.00021917,2]
[392602795,1761730235429,-505.01,0.00021917,2]
[392602796,1761730235440,-500.0,0.00021917,2]
[392602797,1761730235450,-500.0,0.00021917,2]
[392602798,1761730235459,-1718.33,0.00021917,2]
[392602799,1761730235469,-500.0,0.00021917,2]
[392602800,1761730235479,-500.0,0.00021917,2]
[392602801,1761730235488,-500.0,0.00021917,2]
[392602802,1761730235498,-618.26,0.00021917,2]
[392602803,1761730235508,-500.0,0.00021917,2]
[392602804,1761730235518,-500.0,0.00021917,2]
[392602805,1761730235528,-2855.69,0.00021917,2]
[392602806,1761730235537,-500.0,0.00021917,2]
[392602807,1761730235546,-500.0,0.00021917,2]
[392602808,1761730235556,-500.0,0.00021917,2]
[392602809,1761730235565,-983.71,0.00021917,2]
[392602810,1761730235574,-500.0,0.00021917,2]
[392602811,1761730235583,-500.0,0.00021917,2]
[392602812,1761730235592,-500.0,0.00021917,2]
[392602813,1761730235601,-747.12,0.00021917,2]
[392602814,1761730235610,-612.89274201,0.00021917,2]
[392602815,1761730235619,-628.03,0.00021917,2]
[392602816,1761730235629,-787.23,0.00021917,2]
[392602817,1761730235638,-4205.24,0.00021917,2]
[392602818,1761730235648,-500.0,0.00021917,2]
[392602819,1761730235658,-500.0,0.00021917,2]
[392602820,1761730235667,-500.0,0.00021917,2]
[392602821,1761730235677,-500.0,0.00021917,2]
[392602822,1761730235686,-500.0,0.00021917,2]
[392602823,1761730235696,-500.0,0.00021917,2]
[392602824,1761730235705,-500.0,0.00021917,2]
[392602825,1761730235715,-848.88,0.00021917,2]
[392602826,1761730235724,-935.48,0.00021917,2]
[392602827,1761730235733,-500.0,0.00021917,2]
[392602828,1761730235742,-500.0,0.00021917,2]
[392602829,1761730235752,-570.18476362,0.00021917,2]
[392602830,1761730235761,-500.0,0.00021917,2]
[392602831,1761730235770,-500.0,0.00021917,2]
[392602832,1761730235779,-500.0,0.00021917,2]
[392602833,1761730235789,-500.0,0.00021917,2]
[392602834,1761730235798,-632.94,0.00021917,2]
[392602835,1761730235807,-500.0,0.00021917,2]
[392602836,1761730235817,-500.0,0.00021917,2]
[392602837,1761730235826,-595.88,0.00021917,2]
[392602838,1761730235835,-500.0,0.00021917,2]
[392602839,1761730235844,-500.0,0.00021917,2]
[392602840,1761730235853,-500.0,0.00021917,2]
[392602841,1761730235863,-500.0,0.00021917,2]
[392602842,1761730235872,-928.52,0.00021917,2]
[392602843,1761730235882,-615.02,0.00021917,2]
[392602844,1761730235892,-529.06,0.00021917,2]
[392602845,1761730235901,-500.0,0.00021917,2]
[392602846,1761730235911,-500.0,0.00021917,2]
[392602847,1761730235920,-500.0,0.00021917,2]
[392602848,1761730235930,-500.0,0.00021917,2]
[392602849,1761730235940,-500.0,0.00021917,2]
[392602850,1761730235949,-512.47,0.00021917,2]
[392602851,1761730235959,-727.74,0.00021917,2]
[392602852,1761730235968,-500.0,0.00021917,2]
[392602853,1761730235977,-630.12,0.00021917,2]
[392602854,1761730235987,-500.0,0.00021917,2]
[392602855,1761730235996,-500.0,0.00021917,2]
[392602856,1761730236006,-500.0,0.00021917,2]
[392602857,1761730236015,-1339.61,0.00021917,2]
[392602858,1761730236024,-500.0,0.00021917,2]
[392602859,1761730236034,-1267.41,0.00021917,2]
[392602860,1761730236043,-500.0,0.00021917,2]
[392602861,1761730236052,-500.0,0.00021917,2]
[392602862,1761730236061,-500.0,0.00021917,2]
[392602863,1761730236071,-1009.55,0.00021917,2]
[392602864,1761730236081,-873.01,0.00021917,2]
[392602865,1761730236090,-934.81,0.00021917,2]
[392602866,1761730236100,-500.0,0.00021917,2]
[392602867,1761730236110,-500.0,0.00021917,2]
[392602868,1761730236119,-540.49,0.00021917,2]
[392602869,1761730236128,-1153.38,0.00021917,2]
[392602870,1761730236137,-500.0,0.00021917,2]
[392602871,1761730236146,-1298.76,0.00021917,2]
[392602872,1761730236155,-1366.87,0.00021917,2]
[392602873,1761730236164,-151.0,0.00021917,7]
[392602874,1761730236173,-926.6,0.00021917,2]
[392602875,1761730236182,-621.0,0.00021917,2]
[392602876,1761730236192,-500.0,0.00021917,2]
[392602877,1761730236202,-500.0,0.00021917,2]
[392602878,1761730236211,-2250.69,0.00021917,2]
[392602879,1761730236220,-558.15415504,0.00021917,2]
[392602880,1761730236229,-500.0,0.00021917,2]
[392602881,1761730236239,-500.0,0.00021917,2]
[392602882,1761730236248,-1423.64,0.00021917,2]
[392602883,1761730236257,-670.5,0.00021917,2]
[392602884,1761730236266,-578.17,0.00021917,2]
[392602885,1761730236275,-500.0,0.00021917,2]
[392602886,1761730236284,-500.0,0.00021917,2]
[392602887,1761730236298,-500.0,0.00021917,2]
[392602888,1761730236307,-500.0,0.00021917,2]
[392602889,1761730236316,-500.0,0.00021917,2]
[392602890,1761730236325,-500.0,0.00021917,2]
[392602891,1761730236336,-500.0,0.00021917,2]
[392602892,1761730236346,-500.0,0.00021917,2]
[392602893,1761730236355,-500.0,0.00021917,2]
[392602894,1761730236366,-516.79876197,0.00021917,2]
[392602895,1761730236376,-905.17,0.00021917,2]
[392602896,1761730236386,-500.0,0.00021917,2]
[392602897,1761730236396,-500.0,0.00021917,2]
[392602898,1761730236406,-500.0,0.00021917,2]
[392602899,1761730236415,-500.0,0.00021917,2]
[392602900,1761730236425,-500.0,0.00021917,2]
[392602901,1761730236434,-500.0,0.00021917,2]
[392602902,1761730236442,-500.0,0.00021917,2]
[392602903,1761730236452,-586.83,0.00021917,2]
[392602904,1761730236461,-500.0,0.00021917,2]
[392602905,1761730236470,-634.33,0.00021917,2]
[392602906,1761730236480,-1582.19,0.00021917,2]
[392602907,1761730236489,-500.0,0.00021917,2]
[392602908,1761730236498,-151.0,0.00021918,7]
[392602909,1761730236508,-151.0,0.00021918,7]
[392602910,1761730236516,-500.0,0.00021973,2]
[392602911,1761730236526,-194.995576,0.00021986,5]
[392602912,1761730236536,-500.0,0.00021991,5]
[392602913,1761730236545,-41633.73,0.00022,7]
[392602914,1761730236555,-403.72361849,0.00022,7]